fUST/lending_fUST_20260106
["ID","MTS","AMOUNT","RATE_DAILY","PERIOD"]
[400494255,1767664244809,-1500.0,0.00014368,2]
[400494256,1767664244819,-284.48693118,0.00014368,2]
[400494257,1767664244828,-1500.0,0.00014368,2]
[400494258,1767664244837,-1500.0,0.00014368,2]
[400494259,1767664244847,-1500.0,0.00014368,2]
[400494260,1767664244857,-1500.0,0.00014368,2]
[400494261,1767664244867,-1500.0,0.00014368,2]
[400494262,1767664244876,-519.79761264,0.00014368,2]
[400494263,1767664244885,-1047.32603156,0.00014368,2]
[400494264,1767664244894,-1500.0,0.00014368,2]
[400494265,1767664244904,-1500.0,0.00014368,2]
[400494266,1767664244914,-721.52494556,0.00014368,2]
[400494267,1767664244923,-1500.0,0.00014368,2]
[400494268,1767664244932,-1500.0,0.00014368,2]
[400494269,1767664244943,-1500.0,0.00014368,2]
[400494270,1767664244952,-1500.0,0.00014368,2]
[400494271,1767664244961,-1500.0,0.00014368,2]
[400494272,1767664244971,-465.96303408,0.00014368,2]
[400494273,1767664244980,-629.91041953,0.00014368,2]
[400494274,1767664244990,-1500.0,0.00014368,2]
[400494275,1767664245000,-1500.0,0.00014368,2]
[400494276,1767664245009,-1500.0,0.00014368,2]
[400494277,1767664245018,-468.46,0.000144,2]
[400494278,1767664245028,-11928.05414447,0.00014514,2]
[400494279,1767664245153,-338.84055212,0.00014514,2]
[400494280,1767664245166,-5610.15874055,0.00014514,2]
[400494281,1767664245179,-13232.94656286,0.00014514,2]
[400494283,1767664245188,-2487.15318209,0.00014514,2]
[400494285,1767664245197,-1124.90025495,0.00014553,2]
[400494287,1767664245208,-2167.32954027,0.00014553,2]
[400494288,1767664245219,-310.41798196,0.00014736,2]
[400494289,1767664245485,-180.125,0.00013594,2]
[400494290,1767664245495,-265.11381999,0.00014736,2]
[400494291,1767664245506,-6802.67877549,0.00014736,2]
[400494292,1767664245516,-19556.40783869,0.00014768,2]
[400494293,1767664245527,-2155.79739411,0.00014768,2]
[400494294,1767664245537,-283.253783,0.00014768,2]
[400494295,1767664245547,-283.253783,0.00014768,2]
[400494296,1767664245556,-283.253783,0.00014768,2]
[400494297,1767664245566,-283.253783,0.00014768,2]
[400494298,1767664245576,-151.0,0.00014768,2]
[400494299,1767664245586,-151.0,0.00014768,2]
[400494300,1767664245695,-151.0,0.00014768,2]
[400494301,1767664245724,-900.0,0.00014768,2]
[400494302,1767664245734,-200.0,0.00014794,2]
[400494303,1767664245743,-1500.0,0.00014795,2]
[400494304,1767664245753,-524.7180098,0.00014795,2]
[400494305,1767664245763,-1500.0,0.00014795,2]
[400494306,1767664245773,-1374.13702719,0.00014795,2]
[400494307,1767664245782,-1159.45147111,0.00014795,2]
[400494308,1767664245791,-1500.0,0.00014795,2]
[400494309,1767664245801,-1500.0,0.00014795,2]
[400494310,1767664245810,-669.96613283,0.00014795,2]
[400494311,1767664245819,-1500.0,0.00014795,2]
[400494312,1767664245829,-1500.0,0.00014795,2]
[400494313,1767664245838,-691.83960896,0.00014795,2]
[400494314,1767664245848,-1290.07641497,0.00014795,2]
[400494315,1767664245858,-1500.0,0.00014795,2]
[400494316,1767664245867,-1500.0,0.00014795,2]
[400494317,1767664245877,-1428.10188298,0.00014795,2]
[400494318,1767664245885,-1500.0,0.00014795,2]
[400494319,1767664245895,-1500.0,0.00014795,2]
[400494320,1767664245904,-495.43987106,0.00014795,2]
[400494321,1767664245923,-434.35922891,0.00014795,2]
[400494322,1767664245934,-570.20090003,0.00014795,2]
[400494323,1767664245943,-1500.0,0.00014795,2]
[400494324,1767664245952,-28.79909997,0.00014795,2]
[400494329,1767664246514,-1471.20090003,0.00014795,2]
[400494330,1767664246524,-376.58261841,0.00014795,2]
[400494331,1767664246620,-1123.41738159,0.00014795,2]
[400494332,1767664246629,-1344.63062731,0.00014795,2]
[400494333,1767664246641,-155.36937269,0.00014795,2]
[400494334,1767664246650,-1500.0,0.00014795,2]
[400494335,1767664246659,-1500.0,0.00014795,2]
[400494336,1767664246668,-1500.0,0.00014795,2]
[400494337,1767664246677,-1500.0,0.00014795,2]
[400494339,1767664246687,-1500.0,0.00014795,2]
[400494340,1767664246696,-1500.0,0.00014795,2]
[400494341,1767664246706,-1080.21765806,0.00014795,2]
[400494342,1767664246717,-350.0,0.00014795,2]
[400494343,1767664246726,-1500.0,0.00014795,2]
[400494344,1767664246736,-1500.0,0.00014795,2]
[400494345,1767664246745,-1500.0,0.00014795,2]
[400494346,1767664246754,-1514.54188869,0.00014795,2]
[400494347,1767664246764,-369.50382246,0.00014795,2]
[400494348,1767664246773,-1500.0,0.00014795,2]
[400494349,1767664246782,-1500.0,0.00014795,2]
[400494350,1767664246791,-1500.0,0.00014795,2]
[400494351,1767664246801,-1500.0,0.00014795,2]
[400494352,1767664246810,-1500.0,0.00014795,2]
[400494353,1767664246820,-1500.0,0.00014795,2]
[400494354,1767664246829,-1500.0,0.00014795,2]
[400494355,1767664246840,-1500.0,0.00014795,2]
[400494356,1767664246849,-1500.0,0.00014795,2]
[400494357,1767664246859,-1500.0,0.00014795,2]
[400494358,1767664246870,-374.05076945,0.00014795,2]
[400494359,1767664246879,-1500.0,0.00014795,2]
[400494360,1767664246889,-1517.79645704,0.00014795,2]
[400494361,1767664246898,-293.32398736,0.00014795,2]
[400494362,1767664246910,-338.71019234,0.00014795,2]
[400494371,1767664533924,207.7364862,0.00030136,120]
[400494384,1767664722691,2507.80947992,0.0003013,120]
[400494385,1767664740638,212.72421398,0.00030136,120]
[400494399,1767664857725,3000.0,0.00030136,120]
[400494413,1767665002513,-300.0,9.299e-05,2]
[400494414,1767665002538,-153.08595196,9.299e-05,2]
[400494415,1767665002561,-99.37491425,9.299e-05,2]
[400494417,1767665006251,-103.55964938,9.299e-05,2]
[400494418,1767665006273,-156.58713708,9.299e-05,2]
[400494419,1767665006296,-255.84139656,9.299e-05,2]
[400494420,1767665008432,-247.08651175,9.299e-05,2]
[400494421,1767665010470,-33.54846607,9.299e-05,2]
[400494422,1767665010492,-184.14655179,9.3e-05,2]
[400494424,1767665123039,-300.0,9.299e-05,2]
[400494425,1767665123062,-182.54202321,9.299e-05,2]
[400494426,1767665126626,-388.88158038,9.299e-05,2]
[400494427,1767665128488,-174.02008125,9.299e-05,2]
[400494428,1767665129952,-292.06183105,9.299e-05,2]
[400494429,1767665141848,169.5241737,0.00030137,120]
[400494430,1767665166796,-162.49448411,9.299e-05,2]
[400494431,1767665166817,-186.21078364,9.299e-05,2]
[400494432,1767665196326,263.56279181,0.00030136,120]
[400494433,1767665227495,-300.0,9.299e-05,2]
[400494434,1767665227516,-36.97786078,9.3e-05,2]
[400494435,1767665286879,-178.56829269,9.299e-05,2]
[400494436,1767665332904,-121.43170731,9.299e-05,2]
[400494437,1767665332925,-162.62262261,9.299e-05,2]
[400494438,1767665346880,-289.56437387,9.299e-05,2]
[400494439,1767665407895,-154.11422309,9.299e-05,2]
[400494441,1767665411620,-145.88577691,9.299e-05,2]
[400494442,1767665411640,-16.91840201,9.299e-05,2]
[400494443,1767665413067,-288.33467233,9.299e-05,2]
[400494444,1767665414690,-217.57988734,9.299e-05,2]
[400494445,1767665418505,-27.16703832,9.299e-05,2]
[400494446,1767665418530,-561.09092957,9.299e-05,2]
[400494447,1767665420622,-362.52379118,9.299e-05,2]
[400494448,1767665422822,-257.18449213,9.299e-05,2]
[400494472,1767665432573,-19.20078712,9.299e-05,2]
[400494473,1767665432583,-142.24622571,9.299e-05,2]
[400494474,1767665432592,-348.38249672,9.3e-05,2]
[400494526,1767665438780,-4614.9390663,9.3e-05,2]
[400494528,1767665438791,-17850.49358232,9.3e-05,2]
[400494530,1767665438800,-290.31,9.3e-05,2]
[400494532,1767665438809,-300.0,9.485e-05,2]
[400494534,1767665438819,-300.0,9.485e-05,2]
[400494536,1767665438828,-300.0,9.485e-05,2]
[400494538,1767665438838,-300.0,9.485e-05,2]
[400494540,1767665438847,-300.0,9.485e-05,2]
[400494542,1767665438856,-300.0,9.485e-05,2]
[400494544,1767665438866,-300.0,9.485e-05,2]
[400494547,1767665438876,-300.0,9.485e-05,2]
[400494549,1767665438885,-300.0,9.485e-05,2]
[400494551,1767665438894,-300.0,9.485e-05,2]
[400494553,1767665438904,-300.0,9.485e-05,2]
[400494555,1767665438913,-300.0,9.485e-05,2]
[400494557,1767665438923,-300.0,9.485e-05,2]
[400494559,1767665438933,-300.0,9.485e-05,2]
[400494561,1767665438942,-300.0,9.485e-05,2]
[400494562,1767665438951,-600.0,9.485e-05,2]
[400494564,1767665438960,-1189.65204652,9.604e-05,2]
[400494566,1767665438969,-290.31,9.7e-05,2]
[400494567,1767665438979,-290.31,0.000101,2]
[400494569,1767665438988,-393.0,0.00010229,2]
[400494571,1767665438997,-1680.0,0.00010229,2]
[400494573,1767665439007,-720.0,0.00010433,2]
[400494575,1767665439018,-290.31,0.000106,2]
[400494577,1767665439028,-2229.30409305,0.00010953,2]
[400494579,1767665439037,-290.31,0.00011,2]
[400494581,1767665439047,-2351.0,0.00011252,2]
[400494583,1767665439057,-359.74524102,0.00011299,2]
[400494584,1767665439066,-500.0,0.00011324,2]
[400494586,1767665439076,-153.10783678,0.00011324,2]
[400494588,1767665439086,-156.80485836,0.00011324,2]
[400494590,1767665439095,-290.31,0.000114,2]
[400494592,1767665439105,-153.00210179,0.00011401,2]
[400494594,1767665439115,-500.0,0.00011401,2]
[400494595,1767665439124,-150.94494562,0.00011426,2]
[400494597,1767665439134,-154.32507995,0.00011426,2]
[400494599,1767665439143,-500.0,0.00011426,2]
[400494601,1767665439153,-500.0,0.00011426,2]
[400494603,1767665439163,-500.0,0.00011461,2]
[400494604,1767665439172,-864.0,0.00011477,2]
[400494606,1767665439182,-302.33988683,0.00011505,2]
[400494608,1767665439191,-500.0,0.00011538,2]
[400494610,1767665439200,-500.0,0.00011563,2]
[400494612,1767665439209,-500.0,0.00011563,2]
[400494614,1767665439219,-169.90389408,0.00011563,2]
[400494615,1767665439228,-500.0,0.00011595,2]
[400494617,1767665439237,-500.0,0.00011595,2]
[400494619,1767665439247,-277.32293605,0.00011595,2]
[400494621,1767665439256,-500.0,0.00011595,2]
[400494623,1767665439266,-500.0,0.00011595,2]
[400494625,1767665439276,-500.0,0.00011595,2]
[400494627,1767665439285,-500.0,0.00011595,2]
[400494628,1767665439294,-500.0,0.00011595,2]
[400494630,1767665439304,-500.0,0.00011595,2]
[400494632,1767665439313,-500.0,0.00011595,2]
[400494634,1767665439322,-500.0,0.00011595,2]
[400494636,1767665439330,-500.0,0.00011595,2]
[400494637,1767665439339,-500.0,0.00011595,2]
[400494639,1767665439348,-500.0,0.00011595,2]
[400494641,1767665439357,-500.0,0.00011595,2]
[400494643,1767665439367,-500.0,0.00011595,2]
[400494645,1767665439376,-559.95859365,0.00011595,2]
[400494647,1767665439385,-368.75529941,0.00011595,2]
[400494648,1767665439394,-500.0,0.00011595,2]
[400494650,1767665439403,-500.0,0.00011595,2]
[400494652,1767665439412,-500.0,0.00011595,2]
[400494654,1767665439422,-500.0,0.00011595,2]
[400494656,1767665439431,-500.0,0.00011595,2]
[400494657,1767665439440,-500.0,0.00011595,2]
[400494659,1767665439455,-500.0,0.00011595,2]
[400494661,1767665439464,-500.0,0.00011595,2]
[400494663,1767665439473,-500.0,0.00011595,2]
[400494665,1767665439483,-155.60852563,0.00011598,2]
[400494666,1767665439492,-13878.53208905,0.000116,2]
[400494668,1767665439501,-166.775,0.00011664,2]
[400494670,1767665439510,-500.0,0.00011675,2]
[400494672,1767665439522,-162.92329902,0.000117,2]
[400494674,1767665439531,-500.0,0.000117,2]
[400494676,1767665439540,-500.0,0.000117,2]
[400494678,1767665439550,-151.0,0.000117,2]
[400494679,1767665439559,-151.0,0.000117,2]
[400494681,1767665439569,-151.0,0.000117,2]
[400494683,1767665439578,-151.0,0.000117,2]
[400494685,1767665439588,-153.84819515,0.00011735,2]
[400494687,1767665439598,-229.21411444,0.0001179,2]
[400494689,1767665439607,-500.0,0.0001179,2]
[400494691,1767665439616,-500.0,0.0001179,2]
[400494692,1767665439625,-500.0,0.0001179,2]
[400494694,1767665439634,-151.92238479,0.0001179,2]
[400494696,1767665439644,-290.31,0.000118,2]
[400494698,1767665439653,-500.0,0.00011812,2]
[400494700,1767665439662,-165.36125595,0.00011837,2]
[400494702,1767665439672,-193.3328023,0.00011837,2]
[400494717,1767665439815,-500.0,0.00011837,2]
[400494718,1767665439824,-500.0,0.00011927,2]
[400494720,1767665439833,-609.59469468,0.00011927,2]
[400494722,1767665439843,-500.0,0.00011927,2]
[400494724,1767665439852,-152.00675301,0.00011927,2]
[400494726,1767665439862,-500.0,0.00011949,2]
[400494728,1767665439873,-500.0,0.00011974,2]
[400494730,1767665439882,-500.0,0.00012064,2]
[400494732,1767665439891,-500.0,0.00012064,2]
[400494734,1767665439900,-202.6039413,0.00012064,2]
[400494736,1767665439909,-158.922237,0.00012064,2]
[400494738,1767665439919,-500.0,0.00012086,2]
[400494740,1767665439928,-500.0,0.00012111,2]
[400494742,1767665439937,-500.0,0.00012201,2]
[400494744,1767665439946,-500.0,0.00012201,2]
[400494746,1767665439955,-500.0,0.00012223,2]
[400494747,1767665439964,-500.0,0.00012248,2]
[400494749,1767665439974,-290.31,0.000123,2]
[400494751,1767665439985,-751.82,0.00012329,2]
[400494753,1767665439994,-626.51,0.00012329,2]
[400494755,1767665440003,-522.09,0.00012329,2]
[400494757,1767665440012,-435.08,0.00012329,2]
[400494759,1767665440022,-362.57,0.00012329,2]
[400494761,1767665440031,-302.14,0.00012329,2]
[400494762,1767665440041,-251.78,0.00012329,2]
[400494764,1767665440051,-209.82,0.00012329,2]
[400494766,1767665440061,-209.82,0.00012329,2]
[400494768,1767665440071,-839.29,0.00012329,2]
[400494770,1767665440080,-500.0,0.00012338,2]
[400494772,1767665440090,-500.0,0.00012338,2]
[400494774,1767665440099,-200.4693319,0.00012338,2]
[400494775,1767665440108,-500.0,0.0001236,2]
[400494777,1767665440118,-3292.0,0.00012377,2]
[400494779,1767665440127,-500.0,0.00012385,2]
[400494781,1767665440136,-3268.95613958,0.00012421,2]
[400494783,1767665440145,-250.38477157,0.00012431,2]
[400494785,1767665440154,-205.70539229,0.00012475,2]
[400494786,1767665440163,-500.0,0.00012475,2]
[400494788,1767665440172,-500.0,0.00012497,2]
[400494790,1767665440182,-500.0,0.00012612,2]
[400494792,1767665440191,-1000.0,0.00012625,2]
[400494794,1767665440200,-500.0,0.00012634,2]
[400494796,1767665440210,-290.31,0.000127,2]
[400494798,1767665440220,-500.0,0.00012749,2]
[400494800,1767665440228,-500.0,0.00012771,2]
[400494801,1767665440238,-404.22403567,0.00012886,2]
[400494803,1767665440247,-372.00034903,0.00012908,2]
[400494805,1767665440256,-290.31,0.000131,2]
[400494807,1767665440265,-545.13520472,0.00013273,2]
[400494809,1767665440275,-500.0,0.00013273,2]
[400494811,1767665440284,-500.0,0.00013273,2]
[400494813,1767665440294,-500.0,0.00013273,2]
[400494815,1767665440303,-340.82770091,0.00013273,2]
[400494817,1767665440312,-270.22569021,0.00013273,2]
[400494818,1767665440322,-500.0,0.00013273,2]
[400494820,1767665440331,-500.0,0.00013273,2]
[400494822,1767665440340,-381.48667104,0.00013273,2]
[400494824,1767665440349,-500.0,0.00013273,2]
[400494826,1767665440358,-500.0,0.00013273,2]
[400494828,1767665440367,-500.0,0.00013273,2]
[400494830,1767665440376,-500.0,0.00013273,2]
[400494832,1767665440385,-500.0,0.00013273,2]
[400494833,1767665440394,-500.0,0.00013273,2]
[400494835,1767665440403,-500.0,0.00013273,2]
[400494837,1767665440412,-500.0,0.00013273,2]
[400494839,1767665440422,-500.0,0.00013273,2]
[400494841,1767665440432,-500.0,0.00013273,2]
[400494843,1767665440443,-500.0,0.00013273,2]
[400494845,1767665440454,-186.38733603,0.00013273,2]
[400494846,1767665440463,-602.7767078,0.00013273,2]
[400494848,1767665440472,-500.0,0.00013273,2]
[400494850,1767665440483,-500.0,0.00013273,2]
[400494852,1767665440492,-500.0,0.00013273,2]
[400494854,1767665440501,-500.0,0.00013273,2]
[400494856,1767665440510,-500.0,0.00013273,2]
[400494857,1767665440522,-500.0,0.00013273,2]
[400494859,1767665440531,-500.0,0.00013273,2]
[400494860,1767665440541,-500.0,0.00013273,2]
[400494862,1767665440550,-500.0,0.00013273,2]
[400494864,1767665440560,-500.0,0.00013273,2]
[400494865,1767665440569,-500.0,0.00013273,2]
[400494867,1767665440578,-500.0,0.00013273,2]
[400494869,1767665440588,-500.0,0.00013273,2]
[400494871,1767665440597,-501.1671243,0.00013273,2]
[400494873,1767665440606,-500.50196388,0.00013273,2]
[400494874,1767665440615,-500.0,0.00013273,2]
[400494876,1767665440624,-500.0,0.00013273,2]
[400494878,1767665440633,-204.88595441,0.00013273,2]
[400494880,1767665440642,-414.62163371,0.00013299,2]
[400494882,1767665440651,-290.31,0.000135,2]
[400494883,1767665440660,-1041.66666667,0.00013583,2]
[400494885,1767665440669,-522780.5559029,0.00013598,2]
[400494887,1767665440678,-3395.0,0.00013615,2]
[400494889,1767665440687,-300.0,0.00013673,2]
[400494891,1767665440697,-500.0,0.00013698,2]
[400494892,1767665440705,-500.0,0.00013698,2]
[400494894,1767665440714,-500.0,0.00013698,2]
[400494896,1767665440723,-500.0,0.00013698,2]
[400494898,1767665440732,-500.0,0.00013698,2]
[400494900,1767665440742,-500.0,0.00013698,2]
[400494901,1767665440751,-476.39506874,0.00013698,2]
[400494903,1767665440759,-664.2,0.00013698,2]
[400494905,1767665440768,-664.2,0.00013698,2]
[400494907,1767665440777,-664.2,0.00013698,2]
[400494909,1767665440786,-664.2,0.00013698,2]
[400494910,1767665440795,-664.2,0.00013698,2]
[400494912,1767665440804,-664.2,0.00013698,2]
[400494914,1767665440813,-664.2,0.00013698,2]
[400494916,1767665440822,-664.2,0.00013698,2]
[400494918,1767665440832,-664.2,0.00013698,2]
[400494919,1767665440841,-664.2,0.00013698,2]
[400494921,1767665440850,-664.2,0.00013698,2]
[400494923,1767665440859,-664.2,0.00013698,2]
[400494925,1767665440869,-664.2,0.00013698,2]
[400494926,1767665440877,-664.2,0.00013698,2]
[400494928,1767665440888,-664.2,0.00013698,2]
[400494930,1767665440897,-664.2,0.00013698,2]
[400494932,1767665440906,-664.2,0.00013698,2]
[400494934,1767665440915,-664.2,0.00013698,2]
[400494935,1767665440924,-664.2,0.00013698,2]
[400494937,1767665440933,-664.2,0.00013698,2]
[400494939,1767665440943,-664.2,0.00013698,2]
[400494941,1767665440952,-664.2,0.00013698,2]
[400494943,1767665440960,-664.2,0.00013698,2]
[400494944,1767665440970,-664.34864366,0.00013698,2]
[400494946,1767665440979,-3265.94,0.00013698,2]
[400494948,1767665440988,-3265.94,0.00013698,2]
[400494950,1767665440998,-3265.94,0.00013698,2]
[400494952,1767665441006,-3265.94,0.00013698,2]
[400494954,1767665441015,-3265.94,0.00013698,2]
[400494955,1767665441025,-3265.94,0.00013698,2]
[400494957,1767665441034,-3265.94,0.00013698,2]
[400494959,1767665441044,-3265.94,0.00013698,2]
[400494961,1767665441053,-3265.94,0.00013698,2]
[400494962,1767665441063,-3265.94,0.00013698,2]
[400494964,1767665441072,-3265.94,0.00013698,2]
[400494966,1767665441081,-3265.94,0.00013698,2]
[400494968,1767665441091,-3265.94,0.00013698,2]
[400494970,1767665441100,-3265.94,0.00013698,2]
[400494972,1767665441109,-3265.94,0.00013698,2]
[400494973,1767665441118,-3265.94,0.00013698,2]
[400494975,1767665441128,-3265.94,0.00013698,2]
[400494977,1767665441138,-3265.94,0.00013698,2]
[400494978,1767665441147,-3265.94,0.00013698,2]
[400494979,1767665441155,-3265.94,0.00013698,2]
[400494980,1767665441164,-3265.94,0.00013698,2]
[400494981,1767665441173,-3265.94,0.00013698,2]
[400494982,1767665441182,-3265.94,0.00013698,2]
[400494983,1767665441192,-3266.14589799,0.00013698,2]
[400494984,1767665441201,-500.0,0.00013698,2]
[400494985,1767665441210,-500.0,0.00013698,2]
[400494986,1767665441219,-500.0,0.00013698,2]
[400494987,1767665441227,-500.0,0.00013698,2]
[400494988,1767665441236,-500.0,0.00013698,2]
[400494989,1767665441245,-500.0,0.00013698,2]
[400494990,1767665441254,-500.0,0.00013698,2]
[400494991,1767665441262,-500.0,0.00013698,2]
[400494992,1767665441271,-500.0,0.00013698,2]
[400494993,1767665441280,-610.08904206,0.00013698,2]
[400494994,1767665441289,-500.0,0.00013698,2]
[400494995,1767665441297,-500.0,0.00013698,2]
[400494996,1767665441307,-500.0,0.00013698,2]
[400494997,1767665441315,-500.0,0.00013698,2]
[400494998,1767665441324,-500.0,0.00013698,2]
[400494999,1767665441333,-500.0,0.00013698,2]
[400495000,1767665441341,-500.0,0.00013698,2]
[400495001,1767665441350,-500.0,0.00013698,2]
[400495002,1767665441359,-500.0,0.00013698,2]
[400495003,1767665441367,-500.0,0.00013698,2]
[400495004,1767665441376,-500.0,0.00013698,2]
[400495005,1767665441385,-500.0,0.00013698,2]
[400495006,1767665441394,-500.0,0.00013698,2]
[400495007,1767665441403,-500.0,0.00013698,2]
[400495008,1767665441411,-500.0,0.00013698,2]
[400495009,1767665441420,-500.0,0.00013698,2]
[400495010,1767665441428,-500.0,0.00013698,2]
[400495011,1767665441437,-500.0,0.00013698,2]
[400495012,1767665441448,-500.0,0.00013698,2]
[400495013,1767665441457,-264.46220981,0.00013698,2]
[400495014,1767665441466,-513.29487857,0.00013698,2]
[400495015,1767665441475,-567.01199225,0.00013698,2]
[400495016,1767665441485,-500.0,0.00013698,2]
[400495017,1767665441494,-500.0,0.00013698,2]
[400495018,1767665441503,-439.1513283,0.00013698,2]
[400495019,1767665441512,-500.0,0.00013698,2]
[400495020,1767665441522,-500.0,0.00013698,2]
[400495021,1767665441531,-500.0,0.00013698,2]
[400495022,1767665441540,-500.0,0.00013698,2]
[400495023,1767665441549,-500.0,0.00013698,2]
[400495024,1767665441559,-562.85725465,0.00013698,2]
[400495025,1767665441568,-500.0,0.00013698,2]
[400495026,1767665441577,-500.0,0.00013698,2]
[400495027,1767665441587,-500.0,0.00013698,2]
[400495028,1767665441597,-500.0,0.00013698,2]
[400495029,1767665441606,-500.0,0.00013698,2]
[400495030,1767665441615,-500.0,0.00013698,2]
[400495031,1767665441623,-500.0,0.00013698,2]
[400495032,1767665441632,-500.0,0.00013698,2]
[400495033,1767665441640,-500.0,0.00013698,2]
[400495034,1767665441649,-177.41660728,0.00013698,2]
[400495035,1767665441659,-542.68,0.00013698,2]
[400495036,1767665441668,-542.68,0.00013698,2]
[400495037,1767665441676,-542.68,0.00013698,2]
[400495038,1767665441685,-542.68,0.00013698,2]
[400495039,1767665441695,-542.68,0.00013698,2]
[400495040,1767665441704,-542.68,0.00013698,2]
[400495041,1767665441713,-542.68,0.00013698,2]
[400495042,1767665441723,-542.68,0.00013698,2]
[400495044,1767665441732,-542.68,0.00013698,2]
[400495045,1767665441743,-542.68,0.00013698,2]
[400495047,1767665441755,-542.68,0.00013698,2]
[400495048,1767665441765,-542.68,0.00013698,2]
[400495050,1767665441775,-542.68,0.00013698,2]
[400495052,1767665441784,-542.68,0.00013698,2]
[400495053,1767665441793,-542.68,0.00013698,2]
[400495055,1767665441803,-542.68,0.00013698,2]
[400495056,1767665441812,-542.68,0.00013698,2]
[400495057,1767665441821,-542.68,0.00013698,2]
[400495058,1767665441830,-542.68,0.00013698,2]
[400495060,1767665441842,-542.68,0.00013698,2]
[400495061,1767665441851,-542.68,0.00013698,2]
[400495063,1767665441860,-542.68,0.00013698,2]
[400495065,1767665441869,-542.68,0.00013698,2]
[400495066,1767665441878,-542.82047477,0.00013698,2]
[400495067,1767665441887,-181.02300116,0.00013699,2]
[400495068,1767665441896,-2913.536661,0.00013699,2]
[400495070,1767665441905,-64957.8994758,0.00013699,2]
[400495072,1767665441914,-2944.8238159,0.00013699,2]
[400495074,1767665441923,-500.0,0.00013699,2]
[400495075,1767665441932,-500.0,0.00013699,2]
[400495076,1767665441941,-500.0,0.00013699,2]
[400495077,1767665441950,-160.2776929,0.00013699,2]
[400495078,1767665441959,-500.0,0.00013699,2]
[400495079,1767665441968,-500.0,0.00013699,2]
[400495080,1767665441977,-500.0,0.00013699,2]
[400495081,1767665441986,-500.0,0.00013699,2]
[400495082,1767665441996,-500.0,0.00013699,2]
[400495083,1767665442005,-184.8619636,0.00013699,2]
[400495084,1767665442014,-500.0,0.00013699,2]
[400495085,1767665442023,-500.0,0.00013699,2]
[400495086,1767665442032,-500.0,0.00013699,2]
[400495087,1767665442042,-500.0,0.00013699,2]
[400495088,1767665442051,-500.0,0.00013699,2]
[400495090,1767665442061,-500.0,0.00013699,2]
[400495091,1767665442070,-159.86528726,0.00013699,2]
[400495092,1767665442079,-500.0,0.00013699,2]
[400495093,1767665442088,-500.0,0.00013699,2]
[400495094,1767665442098,-500.0,0.00013699,2]
[400495095,1767665442107,-500.0,0.00013699,2]
[400495096,1767665442117,-587.76294591,0.00013699,2]
[400495097,1767665442127,-500.0,0.00013699,2]
[400495098,1767665442136,-500.0,0.00013699,2]
[400495099,1767665442146,-500.0,0.00013699,2]
[400495100,1767665442155,-500.0,0.00013699,2]
[400495101,1767665442165,-500.0,0.00013699,2]
[400495102,1767665442174,-500.0,0.00013699,2]
[400495103,1767665442184,-159.80406561,0.00013699,2]
[400495104,1767665442193,-500.0,0.00013699,2]
[400495105,1767665442203,-500.0,0.00013699,2]
[400495107,1767665442212,-500.0,0.00013699,2]
[400495108,1767665442221,-500.0,0.00013699,2]
[400495109,1767665442230,-500.0,0.00013699,2]
[400495110,1767665442239,-243.06460399,0.00013699,2]
[400495111,1767665442249,-500.0,0.00013699,2]
[400495112,1767665442258,-346.7243931,0.00013699,2]